[Event "*** SCC Grand Prix: Titled Tuesday Blitz"]
[Site "Chess.com"]
[Date "2020.09.29"]
[Round "3"]
[White "The_Machine04"]
[Black "IvanSoriano1"]
[Result "1-0"]
[WhiteElo "2291"]
[BlackElo "2490"]
[TimeControl "180+1"]
[EndTime "10:27:24 PDT"]
[Termination "The_Machine04 won by checkmate"]

1. d4 {[%clk 0:03:00.9]} 1... Nf6 {[%clk 0:02:58.8]} 2. Bg5 {[%clk 0:03:01.1]}
2... Ne4 {[%clk 0:02:58]} 3. Bf4 {[%clk 0:03:00.9]} 3... c5 {[%clk 0:02:58.2]}
4. f3 {[%clk 0:03:00.8]} 4... Nf6 {[%clk 0:02:57.8]} 5. dxc5 {[%clk 0:03:00.4]}
5... Qa5+ {[%clk 0:02:57]} 6. Nc3 {[%clk 0:03:00.7]} 6... Qxc5 {[%clk
0:02:56.6]} 7. e4 {[%clk 0:03:00.7]} 7... d6 {[%clk 0:02:56.8]} 8. Qd2 {[%clk
0:02:58.2]} 8... g6 {[%clk 0:02:53.7]} 9. O-O-O {[%clk 0:02:53.3]} 9... Bg7
{[%clk 0:02:52.7]} 10. g4 {[%clk 0:01:49.1]} 10... O-O {[%clk 0:02:28.5]} 11.
Bh6 {[%clk 0:01:46.5]} 11... Bd7 {[%clk 0:02:20.1]} 12. h4 {[%clk 0:01:42.3]}
12... b5 {[%clk 0:02:17]} 13. h5 {[%clk 0:01:32.5]} 13... b4 {[%clk 0:02:16.3]}
14. Nd5 {[%clk 0:01:12.7]} 14... Nxd5 {[%clk 0:01:49.1]} 15. exd5 {[%clk
0:00:33.2]} 15... Ba4 {[%clk 0:01:26]} 16. Bxg7 {[%clk 0:00:25.4]} 16... Rc8
{[%clk 0:01:24.5]} 17. b3 {[%clk 0:00:20.6]} 17... Kxg7 {[%clk 0:01:23]} 18.
hxg6 {[%clk 0:00:20.5]} 18... h5 {[%clk 0:01:18.6]} 19. gxh5 {[%clk 0:00:13.6]}
19... fxg6 {[%clk 0:01:06.7]} 20. hxg6 {[%clk 0:00:13]} 20... Nd7 {[%clk
0:01:04.5]} 21. Qh6+ {[%clk 0:00:11.2]} 21... Kf6 {[%clk 0:01:04.2]} 22. Qh4+
{[%clk 0:00:08.5]} 22... Kg7 {[%clk 0:00:49.9]} 23. Qh7+ {[%clk 0:00:07.9]}
23... Kf6 {[%clk 0:00:50.1]} 24. Qf7+ {[%clk 0:00:07.8]} 24... Ke5 {[%clk
0:00:46.8]} 25. f4+ {[%clk 0:00:06.1]} 25... Ke4 {[%clk 0:00:46.4]} 26. Bd3+
{[%clk 0:00:04.6]} 26... Ke3 {[%clk 0:00:47]} 27. Rh3+ {[%clk 0:00:03.5]} 27...
Kf2 {[%clk 0:00:46.3]} 28. Rf3+ {[%clk 0:00:03.3]} 28... Kg2 {[%clk 0:00:46.7]}
29. Bf1+ {[%clk 0:00:03]} 29... Kxg1 {[%clk 0:00:45.5]} 30. Bd3+ {[%clk
0:00:02.5]} 30... Kg2 {[%clk 0:00:45.6]} 31. Rdf1 {[%clk 0:00:01.3]} 31... Nf6
{[%clk 0:00:43.4]} 32. Qe6 {[%clk 0:00:01.1]} 32... Qxc2+ {[%clk 0:00:24.8]} 33.
Bxc2 {[%clk 0:00:01]} 33... Bb5 {[%clk 0:00:25.7]} 34. Kd1 {[%clk 0:00:01.4]}
34... Rc5 {[%clk 0:00:24.7]} 35. Qh3# {[%clk 0:00:01.9]} 1-0

[Event "*** SCC Grand Prix: Titled Tuesday Blitz"]
[Site "Chess.com"]
[Date "2020.09.29"]
[Round "3"]
[White "Vision_64"]
[Black "Rubinstein_Akiba"]
[Result "0-1"]
[WhiteElo "2203"]
[BlackElo "2407"]
[TimeControl "180+1"]
[EndTime "10:27:25 PDT"]
[Termination "Rubinstein_Akiba won on time"]

1. e4 {[%clk 0:03:00.9]} 1... c5 {[%clk 0:02:59.3]} 2. Nf3 {[%clk 0:03:00]} 2...
d6 {[%clk 0:02:59.6]} 3. d4 {[%clk 0:02:59.3]} 3... cxd4 {[%clk 0:03:00.5]} 4.
Nxd4 {[%clk 0:02:59.8]} 4... Nf6 {[%clk 0:03:01.2]} 5. Nc3 {[%clk 0:02:59.9]}
5... a6 {[%clk 0:03:00.2]} 6. Bg5 {[%clk 0:03:00.5]} 6... e6 {[%clk 0:02:55]} 7.
f4 {[%clk 0:03:00.3]} 7... Be7 {[%clk 0:02:51.1]} 8. Qf3 {[%clk 0:03:00]} 8...
Nbd7 {[%clk 0:02:47.1]} 9. O-O-O {[%clk 0:02:59.9]} 9... Qc7 {[%clk 0:02:45.5]}
10. Bd3 {[%clk 0:02:59.8]} 10... b5 {[%clk 0:02:43.6]} 11. Rhe1 {[%clk
0:02:59.9]} 11... Bb7 {[%clk 0:02:44]} 12. Nd5 {[%clk 0:02:59.9]} 12... exd5
{[%clk 0:02:41.7]} 13. Nf5 {[%clk 0:02:58.7]} 13... Bf8 {[%clk 0:02:40]} 14. e5
{[%clk 0:02:48.1]} 14... dxe5 {[%clk 0:02:32.7]} 15. fxe5 {[%clk 0:02:43.7]}
15... Ne4 {[%clk 0:02:32.6]} 16. Rxe4 {[%clk 0:01:35.9]} 16... dxe4 {[%clk
0:02:33.5]} 17. Bxe4 {[%clk 0:01:36.2]} 17... Rc8 {[%clk 0:02:07]} 18. Nd6+
{[%clk 0:01:15.7]} 18... Bxd6 {[%clk 0:01:59.6]} 19. exd6 {[%clk 0:01:15.7]}
19... Qc5 {[%clk 0:01:45.2]} 20. Be3 {[%clk 0:00:59.4]} 20... Qc4 {[%clk
0:01:38.7]} 21. Rd4 {[%clk 0:00:52.2]} 21... Qc5 {[%clk 0:01:18.5]} 22. b4
{[%clk 0:00:50.7]} 22... Qc3 {[%clk 0:01:01.2]} 23. Qf4 {[%clk 0:00:17.7]} 23...
O-O {[%clk 0:00:47.1]} 24. Bd3 {[%clk 0:00:13.9]} 24... Rce8 {[%clk 0:00:25.5]}
25. Qh4 {[%clk 0:00:05.9]} 25... h6 {[%clk 0:00:15.8]} 26. Bf2 {[%clk
0:00:01.9]} 26... Qa1+ {[%clk 0:00:13.3]} 27. Kd2 {[%clk 0:00:01.9]} 27... Qh1
{[%clk 0:00:12.5]} 28. Qh3 {[%clk 0:00:01.4]} 28... Qxg2 {[%clk 0:00:12]} 0-1

[Event "*** SCC Grand Prix: Titled Tuesday Blitz"]
[Site "Chess.com"]
[Date "2020.09.29"]
[Round "3"]
[White "LiemLe"]
[Black "ChessSkool"]
[Result "1-0"]
[WhiteElo "2987"]
[BlackElo "2700"]
[TimeControl "180+1"]
[EndTime "10:27:33 PDT"]
[Termination "LiemLe won on time"]

1. d4 {[%clk 0:03:00.9]} 1... d5 {[%clk 0:02:59.5]} 2. Nf3 {[%clk 0:03:00.3]}
2... Nf6 {[%clk 0:02:59.4]} 3. Bf4 {[%clk 0:02:59.2]} 3... c5 {[%clk 0:02:59]}
4. e3 {[%clk 0:02:59.2]} 4... cxd4 {[%clk 0:02:58.4]} 5. exd4 {[%clk 0:02:59.1]}
5... Nc6 {[%clk 0:02:58.8]} 6. Nbd2 {[%clk 0:02:53.6]} 6... Bf5 {[%clk
0:02:56.7]} 7. Bb5 {[%clk 0:02:51.3]} 7... e6 {[%clk 0:02:46.5]} 8. Ne5 {[%clk
0:02:36.4]} 8... Qb6 {[%clk 0:02:46.5]} 9. c4 {[%clk 0:02:36.4]} 9... Bb4 {[%clk
0:02:24.7]} 10. Qa4 {[%clk 0:02:22.1]} 10... O-O {[%clk 0:01:58]} 11. c5 {[%clk
0:02:20.7]} 11... Bxd2+ {[%clk 0:01:52.1]} 12. Bxd2 {[%clk 0:02:12.6]} 12... Qc7
{[%clk 0:01:06.9]} 13. Bxc6 {[%clk 0:02:10.5]} 13... bxc6 {[%clk 0:01:06.5]} 14.
Qxc6 {[%clk 0:02:09.3]} 14... Qb8 {[%clk 0:00:48.2]} 15. b3 {[%clk 0:01:57.7]}
15... Rc8 {[%clk 0:00:47.4]} 16. Qa6 {[%clk 0:01:33.3]} 16... Rxc5 {[%clk
0:00:28.4]} 17. Nc6 {[%clk 0:01:23.5]} 17... Qb5 {[%clk 0:00:26.5]} 18. Qxb5
{[%clk 0:01:18.5]} 18... Rxb5 {[%clk 0:00:27.4]} 19. Ne7+ {[%clk 0:01:18.9]}
19... Kf8 {[%clk 0:00:26.8]} 20. Nxf5 {[%clk 0:01:19.8]} 20... exf5 {[%clk
0:00:27.3]} 21. f3 {[%clk 0:01:12.2]} 21... a5 {[%clk 0:00:27.4]} 22. Ke2 {[%clk
0:01:10.7]} 22... a4 {[%clk 0:00:27.5]} 23. b4 {[%clk 0:01:09.2]} 23... a3
{[%clk 0:00:20.5]} 24. Rhc1 {[%clk 0:01:08.1]} 24... Ke7 {[%clk 0:00:21]} 25.
Rc5 {[%clk 0:01:04.9]} 25... Rab8 {[%clk 0:00:18.4]} 26. Kd3 {[%clk 0:00:57.1]}
26... Nd7 {[%clk 0:00:18.7]} 27. Re1+ {[%clk 0:00:50.6]} 27... Kd8 {[%clk
0:00:15.8]} 28. Rc6 {[%clk 0:00:42]} 28... R8b6 {[%clk 0:00:12.6]} 29. Rc2
{[%clk 0:00:32.4]} 29... Rb7 {[%clk 0:00:12.6]} 30. Rb1 {[%clk 0:00:21.5]} 30...
Nb6 {[%clk 0:00:12.8]} 31. Rb3 {[%clk 0:00:22.1]} 31... Nc4 {[%clk 0:00:13.1]}
32. Rxc4 {[%clk 0:00:22.7]} 32... dxc4+ {[%clk 0:00:13.6]} 33. Kxc4 {[%clk
0:00:23.6]} 33... R5b6 {[%clk 0:00:08.3]} 34. Rxa3 {[%clk 0:00:23.7]} 34... Rc6+
{[%clk 0:00:07.7]} 35. Kd3 {[%clk 0:00:23.3]} 35... Kd7 {[%clk 0:00:08.6]} 36.
Ra5 {[%clk 0:00:21.7]} 36... g6 {[%clk 0:00:07.8]} 37. a4 {[%clk 0:00:22.2]}
37... h5 {[%clk 0:00:06.3]} 38. Rc5 {[%clk 0:00:21.8]} 38... Ra6 {[%clk
0:00:03.3]} 39. a5 {[%clk 0:00:21.2]} 39... Rc6 {[%clk 0:00:01.7]} 40. Kc4
{[%clk 0:00:20.4]} 1-0

[Event "*** SCC Grand Prix: Titled Tuesday Blitz"]
[Site "Chess.com"]
[Date "2020.09.29"]
[Round "3"]
[White "Tooweak2slow03"]
[Black "sjam6687"]
[Result "1-0"]
[WhiteElo "2802"]
[BlackElo "2508"]
[TimeControl "180+1"]
[EndTime "10:27:33 PDT"]
[Termination "Tooweak2slow03 won by checkmate"]

1. e4 {[%clk 0:03:00.9]} 1... e5 {[%clk 0:03:00.1]} 2. Nf3 {[%clk 0:03:01]} 2...
Nc6 {[%clk 0:03:00.6]} 3. Bc4 {[%clk 0:03:01.4]} 3... Bc5 {[%clk 0:02:59.4]} 4.
c3 {[%clk 0:03:01.2]} 4... Nf6 {[%clk 0:02:59.6]} 5. d4 {[%clk 0:03:00]} 5...
exd4 {[%clk 0:03:00.5]} 6. e5 {[%clk 0:03:00.1]} 6... d5 {[%clk 0:02:57]} 7. Bb5
{[%clk 0:02:57.8]} 7... Ne4 {[%clk 0:02:56.4]} 8. cxd4 {[%clk 0:02:57.6]} 8...
Bb4+ {[%clk 0:02:35.6]} 9. Bd2 {[%clk 0:02:55.3]} 9... Nxd2 {[%clk 0:02:34]} 10.
Nbxd2 {[%clk 0:02:56.2]} 10... O-O {[%clk 0:02:34.3]} 11. O-O {[%clk 0:02:54.7]}
11... Ne7 {[%clk 0:02:22.8]} 12. Bd3 {[%clk 0:02:49.2]} 12... Bf5 {[%clk
0:02:15.4]} 13. Qc2 {[%clk 0:02:45.5]} 13... Bxd3 {[%clk 0:02:02.2]} 14. Qxd3
{[%clk 0:02:46.4]} 14... f6 {[%clk 0:01:53.6]} 15. a3 {[%clk 0:02:42.4]} 15...
Bxd2 {[%clk 0:01:52.1]} 16. Qxd2 {[%clk 0:02:43.3]} 16... fxe5 {[%clk
0:01:52.3]} 17. Nxe5 {[%clk 0:02:43.1]} 17... Nf5 {[%clk 0:01:43.2]} 18. Rae1
{[%clk 0:02:39.1]} 18... c6 {[%clk 0:01:34.8]} 19. Re2 {[%clk 0:02:07.9]} 19...
Qc7 {[%clk 0:01:33.2]} 20. Rfe1 {[%clk 0:02:07.6]} 20... Rae8 {[%clk 0:01:31.6]}
21. Qf4 {[%clk 0:02:02.8]} 21... Nd6 {[%clk 0:00:57.8]} 22. Qg3 {[%clk
0:01:54.3]} 22... Re7 {[%clk 0:00:54.4]} 23. h4 {[%clk 0:01:44.4]} 23... Nf5
{[%clk 0:00:53.1]} 24. Qg4 {[%clk 0:01:40.1]} 24... Nh6 {[%clk 0:00:48.7]} 25.
Qg5 {[%clk 0:01:38.3]} 25... Nf5 {[%clk 0:00:44.5]} 26. Qf4 {[%clk 0:01:28.7]}
26... Nd6 {[%clk 0:00:41.9]} 27. Qd2 {[%clk 0:01:24]} 27... Ne4 {[%clk
0:00:41.2]} 28. Qd3 {[%clk 0:01:21.1]} 28... Nd6 {[%clk 0:00:38.1]} 29. f3
{[%clk 0:01:20.8]} 29... Nf5 {[%clk 0:00:36.1]} 30. h5 {[%clk 0:01:18.1]} 30...
Qb6 {[%clk 0:00:35.5]} 31. Rd2 {[%clk 0:01:15.6]} 31... Nd6 {[%clk 0:00:28.7]}
32. g4 {[%clk 0:01:06.4]} 32... Rfe8 {[%clk 0:00:27.4]} 33. f4 {[%clk
0:01:02.9]} 33... Nc4 {[%clk 0:00:23.6]} 34. Rde2 {[%clk 0:01:00.9]} 34... Nxb2
{[%clk 0:00:21.2]} 35. Qd2 {[%clk 0:00:53.8]} 35... Nc4 {[%clk 0:00:21]} 36.
Nxc4 {[%clk 0:00:51.4]} 36... Rxe2 {[%clk 0:00:19.6]} 37. Rxe2 {[%clk
0:00:51.4]} 37... Rxe2 {[%clk 0:00:19.8]} 38. Qxe2 {[%clk 0:00:50.1]} 38...
Qxd4+ {[%clk 0:00:16.6]} 39. Ne3 {[%clk 0:00:49.8]} 39... Qxf4 {[%clk 0:00:16]}
40. Nf5 {[%clk 0:00:39.9]} 40... Qc1+ {[%clk 0:00:02.5]} 41. Kg2 {[%clk
0:00:38.8]} 41... g6 {[%clk 0:00:01.4]} 42. Qe8# {[%clk 0:00:37.7]} 1-0

[Event "*** SCC Grand Prix: Titled Tuesday Blitz"]
[Site "Chess.com"]
[Date "2020.09.29"]
[Round "3"]
[White "parnali1611"]
[Black "r31415"]
[Result "0-1"]
[WhiteElo "2111"]
[BlackElo "2462"]
[TimeControl "180+1"]
[EndTime "10:27:33 PDT"]
[Termination "r31415 won on time"]

1. d4 {[%clk 0:03:00.9]} 1... Nf6 {[%clk 0:02:58]} 2. c4 {[%clk 0:02:58.6]} 2...
g6 {[%clk 0:02:57.7]} 3. Nc3 {[%clk 0:02:51.7]} 3... d5 {[%clk 0:02:57.6]} 4.
cxd5 {[%clk 0:02:50.3]} 4... Nxd5 {[%clk 0:02:57.7]} 5. Bd2 {[%clk 0:02:46.2]}
5... Bg7 {[%clk 0:02:56.9]} 6. e4 {[%clk 0:02:42.9]} 6... Nb6 {[%clk 0:02:57]}
7. Be3 {[%clk 0:02:42.7]} 7... O-O {[%clk 0:02:53]} 8. Nf3 {[%clk 0:02:42.9]}
8... Bg4 {[%clk 0:02:51.4]} 9. Be2 {[%clk 0:02:41.5]} 9... Nc6 {[%clk
0:02:41.2]} 10. d5 {[%clk 0:02:32.5]} 10... Na5 {[%clk 0:02:37.9]} 11. Bd4
{[%clk 0:02:13.5]} 11... c6 {[%clk 0:01:59.2]} 12. Bxg7 {[%clk 0:02:09.1]} 12...
Kxg7 {[%clk 0:01:58.6]} 13. b4 {[%clk 0:02:01.8]} 13... Bxf3 {[%clk 0:01:42.3]}
14. gxf3 {[%clk 0:01:54.8]} 14... Nd7 {[%clk 0:01:02.9]} 15. bxa5 {[%clk
0:01:39.6]} 15... Qxa5 {[%clk 0:01:01.3]} 16. Qd4+ {[%clk 0:01:37.6]} 16... Kg8
{[%clk 0:00:54.6]} 17. O-O {[%clk 0:01:23.9]} 17... Rfd8 {[%clk 0:00:51.2]} 18.
Rfc1 {[%clk 0:01:08]} 18... Nf6 {[%clk 0:00:47.1]} 19. Rab1 {[%clk 0:00:58.1]}
19... Rd7 {[%clk 0:00:40.2]} 20. Qb4 {[%clk 0:00:50]} 20... Qc7 {[%clk
0:00:38.8]} 21. Qd4 {[%clk 0:00:29.3]} 21... Nh5 {[%clk 0:00:37]} 22. Bf1 {[%clk
0:00:20.4]} 22... Qf4 {[%clk 0:00:32.7]} 23. Qe3 {[%clk 0:00:19.9]} 23... Qh4
{[%clk 0:00:31.4]} 24. dxc6 {[%clk 0:00:17.5]} 24... bxc6 {[%clk 0:00:31.2]} 25.
Ne2 {[%clk 0:00:16.8]} 25... Rd6 {[%clk 0:00:23.7]} 26. Ng3 {[%clk 0:00:14.3]}
26... Nf4 {[%clk 0:00:23]} 27. Rc5 {[%clk 0:00:12]} 27... Rad8 {[%clk
0:00:19.2]} 28. Rcc1 {[%clk 0:00:09.9]} 28... h5 {[%clk 0:00:14.7]} 29. Qb3
{[%clk 0:00:08.5]} 29... Qg5 {[%clk 0:00:13.5]} 30. e5 {[%clk 0:00:05.3]} 30...
Qxe5 {[%clk 0:00:11.2]} 31. h4 {[%clk 0:00:04.3]} 31... Qf6 {[%clk 0:00:09.9]}
32. Rc4 {[%clk 0:00:01.3]} 32... Qxh4 {[%clk 0:00:09.4]} 0-1

[Event "*** SCC Grand Prix: Titled Tuesday Blitz"]
[Site "Chess.com"]
[Date "2020.09.29"]
[Round "3"]
[White "gumimis"]
[Black "StockholmMissile"]
[Result "1-0"]
[WhiteElo "2222"]
[BlackElo "2397"]
[TimeControl "180+1"]
[EndTime "10:27:35 PDT"]
[Termination "gumimis won by resignation"]

1. e4 {[%clk 0:02:59.7]} 1... c6 {[%clk 0:02:57.5]} 2. d4 {[%clk 0:02:59.7]}
2... d5 {[%clk 0:02:55.9]} 3. Nc3 {[%clk 0:03:00.2]} 3... dxe4 {[%clk
0:02:55.7]} 4. Nxe4 {[%clk 0:03:00.7]} 4... Nf6 {[%clk 0:02:55.8]} 5. Nxf6+
{[%clk 0:03:01]} 5... exf6 {[%clk 0:02:56.1]} 6. c3 {[%clk 0:03:00.5]} 6... Bd6
{[%clk 0:02:55.9]} 7. Bd3 {[%clk 0:03:01]} 7... O-O {[%clk 0:02:54.8]} 8. Qc2
{[%clk 0:03:01.6]} 8... Re8+ {[%clk 0:02:51.7]} 9. Ne2 {[%clk 0:03:01.2]} 9...
h5 {[%clk 0:02:51.1]} 10. O-O {[%clk 0:03:01.8]} 10... Qc7 {[%clk 0:02:49.5]}
11. g3 {[%clk 0:02:52.1]} 11... h4 {[%clk 0:02:27.6]} 12. Nf4 {[%clk 0:02:44.8]}
12... Bg4 {[%clk 0:02:17]} 13. Be3 {[%clk 0:02:02.7]} 13... Nd7 {[%clk
0:02:08.6]} 14. Rae1 {[%clk 0:02:01.1]} 14... Nb6 {[%clk 0:02:08.2]} 15. f3
{[%clk 0:01:54]} 15... Bd7 {[%clk 0:01:58.8]} 16. c4 {[%clk 0:01:29.7]} 16... c5
{[%clk 0:01:57]} 17. d5 {[%clk 0:01:29]} 17... Re5 {[%clk 0:01:42.3]} 18. Bd2
{[%clk 0:01:00.4]} 18... hxg3 {[%clk 0:01:35]} 19. hxg3 {[%clk 0:01:00.2]} 19...
Rg5 {[%clk 0:01:34.6]} 20. Kf2 {[%clk 0:00:55.7]} 20... Nc8 {[%clk 0:01:24.5]}
21. Bh7+ {[%clk 0:00:52.1]} 21... Kf8 {[%clk 0:01:23.6]} 22. Rh1 {[%clk
0:00:37.5]} 22... Ne7 {[%clk 0:01:17.2]} 23. Bd3 {[%clk 0:00:16.6]} 23... g6
{[%clk 0:01:16.8]} 24. Rh8+ {[%clk 0:00:14.3]} 24... Ng8 {[%clk 0:01:16.6]} 25.
Reh1 {[%clk 0:00:08.4]} 25... Re8 {[%clk 0:01:10.6]} 26. Bxg6 {[%clk 0:00:08.3]}
26... Ke7 {[%clk 0:00:35]} 27. Bxf7 {[%clk 0:00:08.5]} 27... Rf8 {[%clk
0:00:29.2]} 28. R1h7 {[%clk 0:00:08.7]} 28... Kd8 {[%clk 0:00:28.7]} 29. Bxg8
{[%clk 0:00:08.3]} 29... Rgxg8 {[%clk 0:00:28.1]} 30. Rxg8 {[%clk 0:00:08.5]}
30... Rxg8 {[%clk 0:00:29]} 31. Ne6+ {[%clk 0:00:08.9]} 31... Bxe6 {[%clk
0:00:24.6]} 32. Rxc7 {[%clk 0:00:09.8]} 32... Bxg3+ {[%clk 0:00:24.4]} 33. Ke2
{[%clk 0:00:10.3]} 33... Bxc7 {[%clk 0:00:22.1]} 34. dxe6 {[%clk 0:00:10.8]}
34... Rg2+ {[%clk 0:00:21.9]} 35. Kf1 {[%clk 0:00:10.1]} 35... Rh2 {[%clk
0:00:22.1]} 36. Qd3+ {[%clk 0:00:10.6]} 1-0

[Event "*** SCC Grand Prix: Titled Tuesday Blitz"]
[Site "Chess.com"]
[Date "2020.09.29"]
[Round "3"]
[White "Roman_Ovetchkin"]
[Black "alexgo05"]
[Result "1/2-1/2"]
[WhiteElo "2650"]
[BlackElo "2423"]
[TimeControl "180+1"]
[EndTime "10:27:37 PDT"]
[Termination "Game drawn by repetition"]

1. d4 {[%clk 0:03:00.9]} 1... Nf6 {[%clk 0:03:00]} 2. c4 {[%clk 0:02:58.8]} 2...
g6 {[%clk 0:03:00.4]} 3. Nc3 {[%clk 0:02:57.5]} 3... Bg7 {[%clk 0:03:00.7]} 4.
e4 {[%clk 0:02:57.5]} 4... d6 {[%clk 0:03:00.2]} 5. f3 {[%clk 0:02:52.5]} 5...
O-O {[%clk 0:02:57.3]} 6. Bg5 {[%clk 0:02:52.4]} 6... c5 {[%clk 0:02:56.5]} 7.
Nge2 {[%clk 0:02:52.3]} 7... Qa5 {[%clk 0:02:53.1]} 8. Qd2 {[%clk 0:02:51.1]}
8... Nc6 {[%clk 0:02:47.6]} 9. d5 {[%clk 0:02:47.7]} 9... Ne5 {[%clk 0:02:47]}
10. Ng3 {[%clk 0:02:47.3]} 10... a6 {[%clk 0:02:45]} 11. a3 {[%clk 0:02:22.4]}
11... Rb8 {[%clk 0:02:17.2]} 12. Bh6 {[%clk 0:01:21.3]} 12... Bxh6 {[%clk
0:02:02.2]} 13. Qxh6 {[%clk 0:01:19.8]} 13... b5 {[%clk 0:02:02.3]} 14. Qd2
{[%clk 0:00:39.5]} 14... bxc4 {[%clk 0:01:45.6]} 15. Be2 {[%clk 0:00:39]} 15...
Nd3+ {[%clk 0:01:42.1]} 16. Bxd3 {[%clk 0:00:38.7]} 16... cxd3 {[%clk 0:01:43]}
17. Qxd3 {[%clk 0:00:34.1]} 17... Rxb2 {[%clk 0:01:39.1]} 18. O-O {[%clk
0:00:34]} 18... Bd7 {[%clk 0:01:39.5]} 19. Rfb1 {[%clk 0:00:30.1]} 19... Rfb8
{[%clk 0:01:38.4]} 20. h3 {[%clk 0:00:20.5]} 20... R8b3 {[%clk 0:01:32.1]} 21.
Rxb2 {[%clk 0:00:19.4]} 21... Rxb2 {[%clk 0:01:33]} 22. Rb1 {[%clk 0:00:16.9]}
22... Qxa3 {[%clk 0:01:28.2]} 23. Rxb2 {[%clk 0:00:16.6]} 23... Qxb2 {[%clk
0:01:29.1]} 24. Qe3 {[%clk 0:00:15.9]} 24... a5 {[%clk 0:01:26.3]} 25. e5 {[%clk
0:00:16.1]} 25... dxe5 {[%clk 0:00:47.3]} 26. Qxc5 {[%clk 0:00:16]} 26... a4
{[%clk 0:00:40.5]} 27. Qxe7 {[%clk 0:00:04.3]} 27... Qxc3 {[%clk 0:00:39.4]} 28.
Qxf6 {[%clk 0:00:04.6]} 28... a3 {[%clk 0:00:24.6]} 29. Ne4 {[%clk 0:00:04.4]}
29... Qd4+ {[%clk 0:00:17.4]} 30. Kh2 {[%clk 0:00:04.9]} 30... a2 {[%clk
0:00:14.9]} 31. Qd8+ {[%clk 0:00:05]} 31... Kg7 {[%clk 0:00:14.4]} 32. Qf6+
{[%clk 0:00:05]} 32... Kf8 {[%clk 0:00:14.8]} 33. Qh8+ {[%clk 0:00:05]} 33...
Ke7 {[%clk 0:00:14.6]} 34. Qf6+ {[%clk 0:00:05]} 34... Kf8 {[%clk 0:00:11.8]}
35. Qh8+ {[%clk 0:00:04.8]} 35... Ke7 {[%clk 0:00:11.9]} 36. Qf6+ {[%clk
0:00:04.9]} 36... Kf8 {[%clk 0:00:12.4]} 1/2-1/2

[Event "*** SCC Grand Prix: Titled Tuesday Blitz"]
[Site "Chess.com"]
[Date "2020.09.29"]
[Round "3"]
[White "Goryachkina"]
[Black "Egorov_Pavel"]
[Result "1-0"]
[WhiteElo "2639"]
[BlackElo "2440"]
[TimeControl "180+1"]
[EndTime "10:27:39 PDT"]
[Termination "Goryachkina won by checkmate"]

1. e4 {[%clk 0:03:00.9]} 1... Nf6 {[%clk 0:03:00.9]} 2. e5 {[%clk 0:03:00.1]}
2... Nd5 {[%clk 0:03:01.3]} 3. d4 {[%clk 0:03:00.4]} 3... d6 {[%clk 0:03:01.5]}
4. Nf3 {[%clk 0:03:00.2]} 4... g6 {[%clk 0:03:01.2]} 5. Bc4 {[%clk 0:02:54]}
5... Nb6 {[%clk 0:02:59.9]} 6. Bb3 {[%clk 0:02:54.1]} 6... Bg7 {[%clk
0:03:00.3]} 7. Ng5 {[%clk 0:02:45.3]} 7... e6 {[%clk 0:03:00.4]} 8. Qf3 {[%clk
0:02:44.5]} 8... Qe7 {[%clk 0:02:57.5]} 9. Ne4 {[%clk 0:02:38.8]} 9... Nc6
{[%clk 0:02:52.1]} 10. c3 {[%clk 0:02:20.3]} 10... dxe5 {[%clk 0:02:49.1]} 11.
Bg5 {[%clk 0:02:18.3]} 11... Qf8 {[%clk 0:02:10.6]} 12. Nf6+ {[%clk 0:02:06.7]}
12... Bxf6 {[%clk 0:02:08]} 13. Bxf6 {[%clk 0:02:04.9]} 13... exd4 {[%clk
0:02:05.8]} 14. O-O {[%clk 0:01:55.5]} 14... Nd7 {[%clk 0:02:02.6]} 15. Bxh8
{[%clk 0:01:22.2]} 15... Qxh8 {[%clk 0:02:03.5]} 16. Ba4 {[%clk 0:01:20.3]}
16... Nde5 {[%clk 0:01:48.2]} 17. Qe4 {[%clk 0:01:19.5]} 17... Bd7 {[%clk
0:01:37.7]} 18. cxd4 {[%clk 0:01:13.8]} 18... Nxd4 {[%clk 0:01:37.1]} 19. Bxd7+
{[%clk 0:01:12.3]} 19... Nxd7 {[%clk 0:01:29.4]} 20. Nc3 {[%clk 0:01:05.9]}
20... Nc5 {[%clk 0:01:16.8]} 21. Qe3 {[%clk 0:01:03]} 21... O-O-O {[%clk
0:01:10.5]} 22. Rad1 {[%clk 0:01:02.2]} 22... e5 {[%clk 0:01:09.2]} 23. f4
{[%clk 0:00:59.8]} 23... f6 {[%clk 0:00:34.5]} 24. fxe5 {[%clk 0:00:55.2]} 24...
fxe5 {[%clk 0:00:35.4]} 25. Rfe1 {[%clk 0:00:45.1]} 25... Nd7 {[%clk 0:00:17.6]}
26. Qe4 {[%clk 0:00:37.9]} 26... Qf6 {[%clk 0:00:10.7]} 27. Nd5 {[%clk
0:00:34.3]} 27... Qd6 {[%clk 0:00:08.6]} 28. Kh1 {[%clk 0:00:27.3]} 28... c6
{[%clk 0:00:07.6]} 29. Ne3 {[%clk 0:00:26.4]} 29... Rf8 {[%clk 0:00:05.8]} 30.
Nc4 {[%clk 0:00:25.3]} 30... Qb4 {[%clk 0:00:04.3]} 31. Nxe5 {[%clk 0:00:22.4]}
31... Nxe5 {[%clk 0:00:03.7]} 32. Qxe5 {[%clk 0:00:22.7]} 32... Rd8 {[%clk
0:00:02.2]} 33. Re4 {[%clk 0:00:16.1]} 33... Qxb2 {[%clk 0:00:02.4]} 34. Rexd4
{[%clk 0:00:15]} 34... Rxd4 {[%clk 0:00:02.8]} 35. Qxd4 {[%clk 0:00:15.3]} 35...
Qxa2 {[%clk 0:00:02.8]} 36. Qd8# {[%clk 0:00:14.7]} 1-0